Workbook

Sheet Лист1
E1: День: | F1: Понедельник | L1: 2024-06-03
D2: Неделя: | F2: 2 | I2: Возраст: | L2: от 7 до 11 лет
A3: № рец. | B3: Прием пищи, наименование блюда | D3: Масса порции | E3: Пищевые вещества (г) | H3: Энерге- тическая ценность (ккал) | I3: Витамины (мг) | L3: Минеральные вещества (мг)
E4: Б | F4: Ж | G4: У | I4: B1 | J4: В2 | K4: C | L4: Ca | M4: Mg | N4: Fe
A5: 1 | B5: 2 | D5: 3 | E5: 4 | F5: 5 | G5: 6 | H5: 7 | I5: 8 | J5: 9 | K5: 10 | L5: 11 | M5: 12 | N5: 13
A6: Завтрак
A7: 311 | B7: Каша пшенная молочная жидкая | D7: 150/4 | E7: 5.5 | F7: 6.3 | G7: 27.1 | H7: 185 | I7: 0.1 | J7: 0.13 | K7: 0.39 | L7: 100.2 | M7: 27.15 | N7: 1.37
A8: 693 | B8: Какао с молоком | D8: 200 | E8: 3.3 | F8: 3.1 | G8: 13.6 | H8: 95 | I8: 0.03 | J8: 0.12 | K8: 0.52 | L8: 110.37 | M8: 26.97 | N8: 0.88
A9: 1 | B9: Сыр (порциями) | D9: 10 | E9: 3 | F9: 3.00 | H9: 36 | K9: 0.07 | L9: 100 | M9: 5.5 | N9: 0.07
A10: СТО | B10: Хлеб пшеничный витаминизированный | D10: 50 | E10: 3 | F10: 0.50 | G10: 28 | H10: 127 | I10: 0.07 | N10: 0.9
A11: Итого за завтрак 414 | E11: =SUM(E7:E10) -> 14.8 | F11: 12.9 | G11: 68.2 | H11: =SUM(H7:H10) -> 443 | I11: 0.2 | J11: 0.25 | K11: 0.98 | L11: 310.57 | M11: 59.62 | N11: 3.22
A12: Обед
A13: 42 | B13: Салат из белокочанной капусты с яблоками | D13: 60 | E13: 1.1 | F13: 2.7 | G13: 5.7 | H13: 55 | I13: 0.02 | J13: 0.02 | K13: 11.73 | L13: 28.35 | M13: 9.85 | N13: 0.64
A14: 148 | B14: Суп лапша-домашняя | D14: 250 | E14: 2.6 | F14: 2.1 | G14: 11.6 | H14: 78 | I14: 0.02 | J14: 0.03 | K14: 0.60 | L14: 12.58 | M14: 7.26 | N14: 0.41
A15: 324 | B15: Биточки(котлеты) рыбные | D15: 90 | E15: 11.61 | F15: 7.83 | G15: 14 | H15: 172 | I15: 0.08 | J15: 0.12 | K15: 0.36 | L15: 57.0 | M15: 29.00 | N15: 1.10
A16: 203 | B16: Картофель отварной с маслом | D16: 200/5 | E16: 4.00 | F16: 4.90 | G16: 30.10 | H16: 189 | I16: 0.17 | J16: 0.12 | K16: 8.27 | L16: 19.20 | M16: 42.78 | N16: 1.68
A17: 365 | B17: Масло сливочное | D17: 10 | E17: 0.1 | F17: 8.3 | G17: 0.1 | H17: 75 | I17: 0.00 | J17: 0.01 | K17: 0.00 | L17: 1.2 | M17: 0.00 | N17: 0.0
A18: 46 | B18: Сок фруктовый | D18: 200 | E18: 1.00 | G18: 20 | H18: 92 | I18: 0.02 | K18: 4 | L18: 14 | M18: 8 | N18: 2.8
A19: СТО | B19: Хлеб пшеничный витаминизированный | D19: 60 | E19: 3.6 | F19: 0.6 | G19: 33 | H19: 152 | I19: 1.14 | J19: =SUM(J14:J18) -> 0.28 | K19: 0.06 | L19: 0.0 | M19: 0 | N19: 1.1
A20: Итого за Обед 875 | E20: =SUM(E13:E19) -> 24.01 | F20: =SUM(F13:F19) -> 26.43 | G20: 114.18 | H20: =SUM(H13:H19) -> 813 | I20: 1.45 | J20: 0.58 | K20: 25.02 | L20: 132.33 | M20: 96.89 | N20: =SUM(N13:N19) -> 7.73
A21: Итого за день 1289 | E21: =E11+E20 -> 38.81 | F21: =F11+F20 -> 39.33 | G21: 182.38 | H21: =SUM(H13:H20) -> 1626 | I21: 1.65 | J21: 0.83 | K21: 26.00 | L21: 442.90 | M21: 156.51 | N21: 10.95

Sheet Лист2

Sheet Лист3
